bitfinex/quotes_SOLUSD_20250507
["timestamp","ask_amount","ask_price","bid_price","bid_amount"]
[1746577752297,17.80983642,148.89,148.83,78.6720316]
[1746577753794,155.50983642,148.92,148.84,1.5081]
[1746577753986,43.80983642,148.96,148.85,6.1498]
[1746577753987,17.80983642,148.91,148.85,6.1498]
[1746577754298,17.80983642,148.91,148.86,21.5]
[1746577754696,17.80983642,148.91,148.87,23.51044535]
[1746577755497,17.80983642,148.9,148.87,23.51044535]
[1746577755798,17.80983642,148.89,148.87,23.51044535]
[1746577755980,17.80983642,148.9,148.87,23.51044535]
[1746577756295,17.80983642,148.92,148.87,23.51044535]
[1746577756485,17.80983642,148.91,148.87,23.51044535]
[1746577756687,17.80983642,148.9,148.87,23.51044535]
[1746577757976,17.80983642,148.89,148.87,23.51044535]
[1746577758575,17.80983642,148.89,148.87,6.7172701]
[1746577758906,17.80983642,148.88,148.84,44.99428477]
[1746577759681,17.80983642,148.87,148.84,44.99428477]
[1746577759902,137.7,148.93,148.84,44.99428477]
[1746577760105,17.80983642,148.89,148.84,44.99428477]
[1746577761295,137.7,148.92,148.84,78.58740489]
[1746577761877,17.80983642,148.92,148.84,78.58740489]
[1746577762079,137.7,148.95,148.84,78.58740489]
[1746577762485,17.80983642,148.92,148.84,78.58740489]
[1746577762697,17.80983642,148.91,148.84,78.58740489]
[1746577763000,17.80983642,148.92,148.84,78.58740489]
[1746577763395,17.80983642,148.91,148.84,78.58740489]
[1746577763808,137.7,148.95,148.84,78.58740489]
[1746577763979,17.80983642,148.91,148.84,78.58740489]
[1746577764888,17.80983642,148.9,148.84,78.58740489]
[1746577765077,17.80983642,148.89,148.84,78.58740489]
[1746577765274,17.80983642,148.88,148.85,21.46]
[1746577765485,17.80983642,148.88,148.86,6.71772134]
[1746577765989,137.7,148.94,148.86,23.51202471]
[1746577766307,17.80983642,148.91,148.86,23.51202471]
[1746577766793,17.80983642,148.9,148.86,23.51202471]
[1746577767401,137.7,148.96,148.86,57.10063145]
[1746577767794,17.80983642,148.92,148.86,57.10063145]
[1746577768009,17.80983642,148.93,148.86,57.10063145]
[1746577768203,155.50983642,148.96,148.86,57.10063145]
[1746577768584,17.80983642,148.93,148.86,57.10063145]
[1746577768789,17.80983642,148.92,148.86,57.10063145]
[1746577769419,155.50983642,148.96,148.86,57.10063145]
[1746577769607,17.80983642,148.92,148.86,57.10063145]
[1746577769811,17.80983642,148.91,148.86,57.10063145]
[1746577770192,17.80983642,148.9,148.86,23.51202471]
[1746577770802,17.80983642,148.9,148.87,21.48]
[1746577771705,17.80983642,148.88,148.87,28.19701211]
[1746577771906,17.80983642,148.89,148.87,28.19701211]
[1746577772087,17.80983642,148.88,148.87,28.19701211]
[1746577772293,137.7,148.94,148.87,44.99018736]
[1746577772595,17.80983642,148.89,148.87,44.99018736]
[1746577773005,17.80983642,148.88,148.87,28.19701211]
[1746577773383,17.80983642,148.88,148.87,21.48]
[1746577774087,17.80983642,148.88,148.84,6.71852233]
[1746577774394,17.80983642,148.85,148.84,6.71852233]
[1746577774592,137.7,148.88,148.83,6.71900189]
[1746577774992,17.80983642,148.86,148.83,23.51669052]
[1746577775704,17.80983642,148.9,148.83,57.11206779]
[1746577776314,17.80983642,148.91,148.83,58.68906779]
[1746577776517,17.80983642,148.92,148.84,6.5806]
[1746577776694,17.80983642,148.91,148.84,6.5806]
[1746577777011,137.7,148.93,148.84,6.5806]
[1746577777311,17.80983642,148.9,148.84,6.5806]
[1746577777921,17.80983642,148.9,148.85,23.51360429]
[1746577779520,17.80983642,148.88,148.86,21.42]
[1746577780217,144.41524611,148.92,148.87,6.7172701]
[1746577780420,137.7,148.91,148.87,6.7172701]
[1746577781321,17.80983642,148.88,148.85,6.71817265]
[1746577781628,17.80983642,148.87,148.85,6.71817265]
[1746577781808,17.80983642,148.86,148.85,6.71817265]
[1746577782000,17.80983642,148.86,148.84,6.71844219]
[1746577782200,17.80983642,148.85,148.84,6.71844219]
[1746577783923,17.80983642,148.85,148.83,6.71907545]
[1746577784611,17.80983642,148.84,148.82,273.24]
[1746577784921,17.80983642,148.83,148.82,273.24]
[1746577785240,17.80983642,148.84,148.82,279.95946797]
[1746577789922,137.7,148.87,148.82,296.75828533]
[1746577789923,17.80983642,148.85,148.82,296.75828533]
[1746577790717,17.80983642,148.86,148.82,296.75828533]
[1746577791027,17.80983642,148.86,148.83,4.89176598]
[1746577791224,137.7,148.87,148.83,4.89176598]
[1746577791430,137.7,148.87,148.84,23.51518408]
[1746577791627,155.50983642,148.91,148.84,23.51518408]
[1746577791835,155.50983642,148.91,148.85,4.89176598]
[1746577792329,137.7,148.91,148.85,4.89176598]
[1746577792724,17.80983642,148.93,148.84,57.1083042]
[1746577793523,17.80983642,148.92,148.85,4.88802516]
[1746577793839,17.80983642,148.92,148.84,50.38968018]
[1746577794635,17.80983642,148.92,148.86,23.51202471]
[1746577794836,17.80983642,148.92,148.87,21.36]
[1746577795042,17.80983642,148.92,148.88,21.38]
[1746577795514,17.80983642,148.91,148.88,21.38]
[1746577795839,17.80983642,148.92,148.88,21.38]
[1746577796429,144.1437,148.94,148.88,21.38]
[1746577796634,17.80983642,148.89,148.88,21.38]
[1746577797129,144.1437,148.94,148.88,21.38]
[1746577797337,17.80983642,148.92,148.88,44.88886619]
[1746577798216,17.80983642,148.91,148.88,44.88886619]
[1746577798738,17.80983642,148.92,148.88,44.88886619]
[1746577798933,137.7,148.94,148.88,78.47296076]
[1746577799122,137.7,148.97,148.88,78.47296076]
[1746577799326,17.80983642,148.96,148.89,8.0998]
[1746577799525,17.80983642,148.96,148.9,4.88348646]
[1746577799721,17.80983642,148.95,148.89,8.0998]
[1746577799921,17.80983642,148.96,148.89,8.0998]
[1746577800126,17.80983642,148.95,148.89,8.0998]
[1746577800430,137.7,148.97,148.89,8.0998]
[1746577800628,139.2309,149.01,148.9,18.64964886]
[1746577800930,10.48244403,149.04,148.94,57.06996104]
[1746577801117,28.29228045,149.04,148.96,7.8649]
[1746577801540,17.80983642,149.03,148.96,7.8649]
[1746577802024,17.80983642,149.02,148.96,7.8649]
[1746577802226,17.80983642,148.99,148.95,21.38]
[1746577802413,17.80983642,148.98,148.95,42.7]
[1746577802619,17.80983642,148.99,148.95,42.7]
[1746577803333,17.80983642,148.99,148.95,49.4136251]
[1746577803537,137.7,149.02,148.95,49.4136251]
[1746577803840,137.7,149.05,148.95,66.19778085]
[1746577804042,17.80983642,149.05,148.96,0.14216157]
[1746577804718,17.80983642,149.03,148.95,99.76609236]
[1746577805038,17.80983642,149.01,148.95,66.19778085]
[1746577805337,17.80983642,149.02,148.95,66.19778085]
[1746577805513,17.80983642,149.03,148.95,66.19778085]
[1746577805834,144.40886341,149.06,148.95,66.19778085]
[1746577806040,17.80983642,149.04,148.95,66.19778085]
[1746577806212,17.80983642,149.03,148.95,66.19778085]
[1746577806841,17.80983642,149.0,148.95,66.19778085]
[1746577807142,17.80983642,149.01,148.95,66.19778085]
[1746577807625,17.80983642,149.0,148.95,66.19778085]
[1746577807823,17.80983642,148.99,148.96,21.3]
[1746577808016,24.51994118,149.03,148.96,21.3]
[1746577808218,137.7,149.02,148.96,21.3]
[1746577808539,17.80983642,149.0,148.96,21.3]
[1746577808715,137.7,149.02,148.96,21.3]
[1746577808916,17.80983642,149.0,148.96,21.3]
[1746577809144,17.80983642,148.98,148.96,21.3]
[1746577809547,17.80983642,148.99,148.96,28.01280905]
[1746577809723,137.7,149.02,148.96,28.01280905]
[1746577810125,17.80983642,149.0,148.96,28.01280905]
[1746577810425,17.80983642,149.0,148.96,44.79583805]
[1746577810740,17.80983642,149.02,148.96,44.79583805]
[1746577811047,17.80983642,149.03,148.96,44.79583805]
[1746577811231,137.7,149.05,148.96,44.79583805]
[1746577811432,17.80983642,149.03,148.96,44.79583805]
[1746577811946,17.77596256,149.04,148.99,17.77596256]
[1746577812331,137.7,149.05,149.0,17.77596256]
[1746577812646,17.77596256,149.05,149.01,39.13596256]
[1746577812817,17.77596256,149.04,149.01,21.36]
[1746577813019,17.77596256,149.02,149.01,21.36]
[1746577813522,137.7,149.06,149.01,28.07057664]
[1746577813723,17.77596256,149.03,149.01,28.07057664]
[1746577813932,137.7,149.06,149.01,28.07057664]
[1746577814138,17.77596256,149.04,149.01,28.07057664]
[1746577815150,137.7,149.06,149.01,28.07057664]
[1746577815333,17.77596256,149.03,149.01,28.07057664]
[1746577815943,137.7,149.06,149.01,28.07057664]
[1746577816256,17.77596256,149.03,149.01,28.07057664]
[1746577816934,17.77596256,149.04,149.01,28.07057664]
[1746577817646,17.77596256,149.03,149.01,28.07057664]
[1746577817844,137.7,149.06,149.01,28.07057664]
[1746577818041,17.77596256,149.04,149.01,28.07057664]
[1746577818240,137.7,149.06,149.03,17.77596256]
[1746577818549,137.7,149.06,149.02,21.26]
[1746577818749,137.7,149.06,149.02,39.03596256]
[1746577819047,155.47596256,149.06,149.02,39.03596256]
[1746577819250,137.7,149.06,149.02,21.26]
[1746577819438,17.77596256,149.05,149.02,21.26]
[1746577819839,17.77596256,149.05,149.03,6.71005837]
[1746577820044,17.77596256,149.04,149.02,21.26]
[1746577820252,17.77596256,149.03,149.01,21.36]
[1746577820557,17.77596256,149.03,149.01,28.07095899]
[1746577820743,137.7,149.06,149.01,45.84692155]
[1746577821056,137.7,149.06,149.02,17.77596256]
[1746577821355,137.7,149.06,149.03,17.77596256]
[1746577821653,137.7,149.06,149.01,62.62431904]
[1746577821869,17.77596256,149.05,149.01,44.84835648]
[1746577822051,17.77596256,149.02,149.01,28.07095899]
[1746577822256,17.77596256,149.03,149.01,28.07095899]
[1746577822755,155.47596256,149.06,149.02,17.77596256]
[1746577823447,155.47596256,149.06,149.01,44.84835648]
[1746577823448,137.7,149.06,149.03,17.77596256]
[1746577823650,137.7,149.06,149.04,21.22]
[1746577824156,17.77596256,149.09,149.05,6.709158]
[1746577824361,17.77596256,149.09,149.05,41.25801556]
[1746577824655,17.77596256,149.09,149.05,23.482053]
[1746577825149,0.8043541,149.1,149.05,23.482053]
[1746577825462,0.8043541,149.1,149.08,17.77596256]
[1746577825641,0.8043541,149.1,149.09,21.24]
[1746577826056,0.8043541,149.1,149.09,27.94735797]
[1746577827236,18.58031666,149.1,149.09,21.24]
[1746577827441,174.05627922,149.1,149.04,21.24]
[1746577827646,17.77596256,149.05,149.04,21.24]
[1746577828264,137.7,149.09,149.04,27.94958247]
[1746577828461,17.77596256,149.05,149.04,27.94958247]
[1746577828849,144.40739128,149.09,149.04,21.24]
[1746577829049,17.77596256,149.05,149.04,21.24]
[1746577829236,17.77596256,149.05,149.04,27.94960815]
[1746577830165,17.77596256,149.06,149.04,27.94960815]
[1746577830961,17.77596256,149.05,149.04,27.94960815]
[1746577831755,137.7,149.09,149.04,27.94960815]
[1746577831964,17.77596256,149.08,149.04,27.94960815]
[1746577832867,17.77596256,149.07,149.04,27.94960815]
[1746577833237,17.77596256,149.08,149.04,27.94960815]
[1746577833961,17.77596256,149.07,149.04,27.94960815]
[1746577834162,137.7,149.09,149.04,27.94960815]
[1746577834460,17.77596256,149.07,149.04,27.94960815]
[1746577834657,137.7,149.09,149.04,27.94960815]
[1746577834861,17.77596256,149.07,149.04,27.94960815]
[1746577835047,17.77596256,149.08,149.04,27.94960815]
[1746577835453,17.77596256,149.08,149.04,44.72362854]
[1746577835970,17.77596256,149.08,149.04,27.94960815]
[1746577836276,17.77596256,149.06,149.04,21.24]
[1746577836567,137.7,149.09,149.04,27.94951466]
[1746577836747,0.8043541,149.1,149.07,17.77596256]
[1746577836953,0.8043541,149.1,149.09,17.77596256]
[1746577838675,0.8043541,149.1,149.08,27.86780788]
[1746577838854,0.8043541,149.1,149.09,17.77596256]
[1746577839152,0.8043541,149.1,149.09,24.48332053]
[1746577839361,0.8043541,149.1,149.09,29.35862524]
[1746577840066,0.8043541,149.1,149.09,11.58266268]
[1746577840361,0.8043541,149.1,149.09,6.70735797]
[1746577841363,0.8043541,149.1,149.09,11.5747098]
[1746577841743,0.8043541,149.1,149.09,6.70735797]
[1746577843069,0.8043541,149.1,149.09,24.48332053]
[1746577843372,0.8043541,149.1,149.09,29.34606065]
[1746577844676,0.8043541,149.1,149.09,37.33546065]
[1746577845179,0.8043541,149.1,149.09,19.55949809]
[1746577845356,0.8043541,149.1,149.09,37.33546065]
[1746577845976,0.045701,149.13,149.12,17.77596256]
[1746577846155,0.045701,149.13,149.12,21.22]
[1746577847805,0.045701,149.13,149.12,27.92600858]
[1746577848606,0.045701,149.13,149.12,6.70600858]
[1746577848672,0.045701,149.13,149.12,27.92600858]
[1746577849079,0.045701,149.13,149.12,45.70197114]
[1746577849490,0.045701,149.13,149.12,27.92600858]
[1746577851201,17.82166356,149.13,149.12,27.92600858]
[1746577851394,0.045701,149.13,149.12,27.92600858]
[1746577856677,17.82166356,149.13,149.12,27.92600858]
[1746577856991,17.82166356,149.13,149.12,21.22]
[1746577857891,19.45036356,149.13,149.12,21.22]
[1746577858790,26.15592246,149.13,149.07,272.46]
[1746577858994,17.77596256,149.08,149.07,272.46]
[1746577859574,17.77596256,149.08,149.07,279.16825786]
[1746577859771,17.77596256,149.08,149.07,272.46]
[1746577860176,17.77596256,149.09,149.07,279.16825786]
[1746577860482,137.7,149.11,149.07,279.16825786]
[1746577860681,17.77596256,149.09,149.07,279.16825786]
[1746577861492,137.7,149.11,149.07,279.16825786]
[1746577861493,17.77596256,149.1,149.07,279.16825786]
[1746577861666,0.045701,149.13,149.08,17.77596256]
[1746577861865,0.045701,149.13,149.07,295.93890252]
[1746577861866,17.82166356,149.13,149.09,17.77596256]
[1746577862085,0.045701,149.13,149.08,17.77596256]
[1746577862389,17.82166356,149.13,149.08,17.77596256]
[1746577862587,17.82166356,149.13,149.09,17.77596256]
[1746577862784,17.82166356,149.13,149.1,21.06]
[1746577863083,0.045701,149.13,149.1,38.83596256]
[1746577863259,0.045701,149.13,149.11,17.77596256]
[1746577863561,0.045701,149.13,149.12,6.70600858]
[1746577863976,17.82166356,149.13,149.12,6.70600858]
[1746577864283,0.045701,149.13,149.12,27.80600858]
[1746577864580,0.045701,149.13,149.12,45.58197114]
[1746577865283,0.045701,149.13,149.12,27.80600858]
[1746577865489,0.045701,149.13,149.12,45.58197114]
[1746577865688,0.045701,149.13,149.12,27.80600858]
[1746577865985,0.045701,149.13,149.12,45.58197114]
[1746577866183,0.045701,149.13,149.12,27.80600858]
[1746577866388,0.045701,149.13,149.12,45.58197114]
[1746577866967,0.045701,149.13,149.12,27.80600858]
[1746577867172,0.045701,149.13,149.12,45.58197114]
[1746577869087,0.045701,149.13,149.12,53.75997114]
[1746577869388,0.045701,149.13,149.12,53.90213271]
[1746577869782,0.045701,149.13,149.12,58.75603591]
[1746577870371,0.045701,149.13,149.12,141.25603591]
[1746577870892,0.045701,149.13,149.12,141.11387434]
[1746577871082,0.045701,149.13,149.12,123.33791178]
[1746577871286,0.045701,149.13,149.12,136.25997114]
[1746577871471,0.045701,149.13,149.12,128.08197114]
[1746577871671,0.045701,149.13,149.12,45.58197114]
[1746577871872,0.045701,149.13,149.12,27.80600858]
[1746577872176,0.045701,149.13,149.12,45.58197114]
[1746577872383,0.045701,149.13,149.12,50.57796772]
[1746577872592,0.045701,149.13,149.12,129.79761658]
[1746577873191,0.045701,149.13,149.12,124.94378157]
[1746577873786,0.045701,149.13,149.12,129.79838314]
[1746577874980,0.045701,149.13,149.12,136.45598314]
[1746577875689,0.045701,149.13,149.12,137.6822247]
[1746577876076,0.045701,149.13,149.12,132.82762313]
[1746577876876,0.045701,149.13,149.12,137.68029963]
[1746577877192,8.33527229,149.29,149.13,60.57]
[1746577877496,1.6369,149.29,149.19,8.44586157]
[1746577877793,10.47421625,149.36,149.28,17.77596256]
[1746577878096,10.47421625,149.36,149.33,17.77596256]
[1746577878272,10.47421625,149.36,149.34,17.77596256]
[1746577878576,3.98456913,149.36,149.35,42.08]
[1746577879404,21.76053169,149.36,149.35,21.1]
[1746577879893,6.6346,149.35,149.29,20.96]
[1746577880096,17.77596256,149.3,149.29,20.96]
[1746577880403,6.6346,149.35,149.29,20.96]
[1746577880593,17.77596256,149.32,149.29,20.96]
[1746577880775,17.77596256,149.3,149.29,20.96]
[1746577881901,13.33033836,149.35,149.29,20.96]
[1746577882282,17.77596256,149.31,149.29,20.96]
[1746577882696,17.77596256,149.3,149.29,20.96]
[1746577883997,17.77596256,149.3,149.25,6.69998869]
[1746577883998,17.77596256,149.3,149.25,20.96]
[1746577884187,17.77596256,149.26,149.25,20.96]
[1746577884385,17.77596256,149.27,149.25,20.96]
[1746577884701,17.77596256,149.28,149.25,20.96]
[1746577884908,24.47484179,149.28,149.25,20.96]
[1746577885210,17.77596256,149.28,149.25,20.96]
[1746577885386,6.69848023,149.29,149.25,20.96]
[1746577885583,17.77596256,149.28,149.25,20.96]
[1746577886924,17.77596256,149.27,149.25,20.96]
[1746577887103,17.77596256,149.26,149.25,20.96]
[1746577888000,17.77596256,149.27,149.25,20.96]
[1746577888181,17.77596256,149.26,149.25,20.96]
[1746577888896,24.47568117,149.26,149.25,20.96]
[1746577889497,24.47568117,149.26,149.2,272.24]
[1746577889691,17.77596256,149.23,149.2,272.24]
[1746577889919,23.44901513,149.26,149.2,272.24]
[1746577890088,17.77596256,149.22,149.2,272.24]
[1746577890590,17.77596256,149.23,149.2,272.24]
[1746577890800,17.77596256,149.22,149.2,272.24]
[1746577891311,17.77596256,149.21,149.2,20.96]
[1746577893797,6.70165161,149.22,149.2,20.96]
[1746577894012,17.77596256,149.22,149.2,20.96]
[1746577894428,26.0,149.24,149.2,20.96]
[1746577894600,17.77596256,149.24,149.2,38.73596256]
[1746577894800,17.77596256,149.25,149.2,45.43835514]
[1746577895315,17.77596256,149.25,149.21,17.77596256]
[1746577895503,19.34116256,149.26,149.22,17.77596256]
[1746577895708,19.34116256,149.26,149.21,17.77596256]
[1746577895913,17.77596256,149.25,149.21,17.77596256]
[1746577896220,17.77596256,149.26,149.22,17.77596256]
[1746577896624,17.77596256,149.26,149.21,38.67596256]
[1746577896941,26.0,149.29,149.21,20.9]
[1746577897101,17.77596256,149.24,149.21,20.9]
[1746577897630,26.0,149.29,149.21,20.9]
[1746577897631,17.77596256,149.22,149.21,20.9]
[1746577897820,17.77596256,149.22,149.2,20.96]
[1746577898120,17.77596256,149.21,149.2,20.96]
[1746577899614,1.5207,149.23,149.2,20.96]
[1746577899917,17.77596256,149.21,149.14,20.96]
[1746577900121,1.5207,149.23,149.16,17.77596256]
[1746577900321,17.77596256,149.21,149.14,20.96]
[1746577900632,17.77596256,149.18,149.14,38.73596256]
[1746577900836,17.77596256,149.17,149.14,20.96]
[1746577901329,17.77596256,149.16,149.14,20.96]
[1746577901533,17.77596256,149.15,149.14,20.96]
[1746577903845,18.64964886,149.2,149.14,20.96]
[1746577904130,17.77596256,149.15,149.14,20.96]
[1746577905440,17.77596256,149.15,149.11,251.16]
[1746577905809,17.77596256,149.12,149.11,251.16]
[1746577906210,17.77596256,149.17,149.11,251.16]
[1746577906413,17.77596256,149.15,149.11,268.93596256]
[1746577906635,17.77596256,149.15,149.11,251.16]
[1746577907818,1.5207,149.23,149.12,17.77596256]
[1746577908017,1.5207,149.23,149.14,17.77596256]
[1746577908324,17.77596256,149.19,149.15,20.96]
[1746577908526,1.5207,149.23,149.15,38.73596256]
[1746577908732,17.77596256,149.21,149.16,17.77596256]
[1746577909641,1.5207,149.23,149.15,20.96]
[1746577909642,17.77596256,149.2,149.15,38.73596256]
[1746577910019,1.5207,149.23,149.15,38.73596256]
[1746577910224,17.77596256,149.2,149.15,38.73596256]
[1746577910717,17.77596256,149.19,149.15,20.96]
[1746577911334,17.77596256,149.17,149.15,20.96]
[1746577911636,1.5207,149.23,149.15,20.96]
[1746577911637,17.77596256,149.16,149.15,20.96]
[1746577913935,17.77596256,149.16,149.11,251.16]
[1746577914133,17.77596256,149.12,149.1,20.82]
[1746577914331,17.77596256,149.11,149.1,20.82]
[1746577914647,35.55192512,149.11,149.05,41.64]
[1746577914821,17.77596256,149.06,149.05,41.64]
[1746577915829,26.25267199,149.06,149.05,41.64]
[1746577916638,26.25267199,149.06,149.05,20.82]
[1746577919424,26.25267199,149.06,149.0,20.84]
[1746577919741,26.25267199,149.01,149.0,20.84]
[1746577920245,26.25267199,149.01,148.95,41.64]
[1746577920450,26.25267199,148.96,148.95,41.64]
[1746577920621,26.25267199,148.96,148.95,20.84]
[1746577921841,52.50534398,148.96,148.9,20.84]
[1746577922018,26.25267199,148.94,148.9,20.84]
[1746577922639,26.0,148.99,148.9,47.09267199]
[1746577922828,26.0,149.0,148.9,47.09267199]
[1746577922829,26.0,149.02,148.93,26.25267199]
[1746577923035,26.25267199,148.97,148.94,20.78]
[1746577923231,26.25267199,148.95,148.94,20.78]
[1746577923431,0.14216157,149.01,148.94,20.78]
[1746577923633,26.25267199,148.95,148.94,20.78]
[1746577924934,26.25267199,148.95,148.91,20.84]
[1746577925142,26.25267199,148.92,148.91,20.84]
[1746577926739,26.25267199,148.92,148.86,20.84]
[1746577926941,26.25267199,148.89,148.86,20.84]
[1746577927354,26.25267199,148.88,148.86,20.84]
[1746577927730,26.0,148.93,148.86,20.84]
[1746577927951,26.25267199,148.89,148.86,20.84]
[1746577928148,26.25267199,148.88,148.86,20.84]
[1746577928563,26.25267199,148.87,148.86,20.84]
[1746577929232,44.64964886,148.93,148.86,20.84]
[1746577929233,26.0,148.93,148.86,20.84]
[1746577929432,26.25267199,148.89,148.86,20.84]
[1746577929631,26.0,148.93,148.86,20.84]
[1746577929632,26.25267199,148.87,148.86,20.84]
[1746577930229,26.25267199,148.87,148.81,20.86]
[1746577930436,26.25267199,148.82,148.76,20.86]
[1746577930662,26.25267199,148.83,148.78,32.84187199]
[1746577930952,26.25267199,148.82,148.78,6.5892]
[1746577931555,26.25267199,148.83,148.78,32.84187199]
[1746577931735,26.25267199,148.84,148.79,26.25267199]
[1746577932136,1.5454,148.88,148.79,26.25267199]
[1746577932449,26.25267199,148.84,148.78,6.5892]
[1746577932752,26.25267199,148.83,148.79,26.25267199]
[1746577932953,26.25267199,148.81,148.78,6.5892]
[1746577933155,26.25267199,148.81,148.77,20.76]
[1746577933463,26.0,148.86,148.77,20.76]
[1746577933771,26.25267199,148.81,148.76,41.62]
[1746577933946,26.25267199,148.81,148.77,26.25267199]
[1746577934262,26.25267199,148.81,148.76,41.62]
[1746577934455,26.25267199,148.79,148.76,41.62]
[1746577934957,26.25267199,148.78,148.76,20.86]
[1746577935347,26.25267199,148.79,148.76,20.86]
[1746577935541,26.25267199,148.8,148.76,47.11267199]
[1746577936561,26.25267199,148.8,148.76,20.86]
[1746577936858,26.25267199,148.8,148.76,47.11267199]
[1746577937353,26.25267199,148.78,148.76,20.86]
[1746577937661,26.25267199,148.77,148.76,20.86]
[1746577937862,18.64964886,148.85,148.76,38.69937163]
[1746577938062,17.83937163,148.79,148.76,20.86]
[1746577938363,17.83937163,148.78,148.76,20.86]
[1746577938862,18.64964886,148.85,148.76,20.86]
[1746577939066,17.83937163,148.8,148.76,20.86]
[1746577939759,26.0,148.86,148.76,38.69937163]
[1746577940062,17.83937163,148.8,148.76,38.69937163]
[1746577940572,17.83937163,148.8,148.76,20.86]
[1746577941069,17.83937163,148.78,148.76,20.86]
[1746577941838,17.83937163,148.78,148.76,27.582076]
[1746577942046,17.83937163,148.77,148.76,20.86]
[1746577942248,17.83937163,148.77,148.72,6.72404518]
[1746577942458,17.83937163,148.73,148.71,27.46432383]
[1746577942640,26.0,148.78,148.71,27.46432383]
[1746577942844,17.83937163,148.74,148.71,27.46432383]
[1746577943148,17.83937163,148.73,148.71,27.46432383]
[1746577943360,17.83937163,148.72,148.71,20.74]
[1746577944567,17.83937163,148.72,148.71,27.46449734]
[1746577944781,18.64964886,148.77,148.71,27.46449734]
[1746577944953,26.0,148.78,148.71,45.30386897]
[1746577945267,26.0,148.78,148.71,62.11511232]
[1746577945482,17.83937163,148.75,148.71,62.11511232]
[1746577945839,17.83937163,148.76,148.72,17.83937163]
[1746577946040,17.83937163,148.77,148.73,41.37194743]
[1746577946460,27.5984,148.8,148.73,23.5325758]
[1746577946461,17.83937163,148.76,148.73,23.5325758]
[1746577946663,17.83937163,148.75,148.73,23.5325758]
[1746577947271,17.83937163,148.74,148.73,6.72359308]
[1746577947649,18.64964886,148.78,148.73,6.72359308]
[1746577947650,26.0,148.76,148.73,6.72359308]
[1746577947854,17.83937163,148.74,148.73,6.72359308]
[1746577948055,17.83937163,148.74,148.72,6.72404518]
[1746577948271,17.83937163,148.73,148.72,6.72404518]
[1746577948473,17.83937163,148.74,148.72,6.72404518]
[1746577949960,17.83937163,148.75,148.72,6.72404518]
[1746577950158,26.0,148.77,148.72,6.72404518]
[1746577950365,26.0,148.77,148.72,23.53415814]
[1746577950563,26.0,148.78,148.72,41.37352977]
[1746577950889,17.83937163,148.74,148.72,23.53415814]
[1746577951584,26.0,148.78,148.72,23.53415814]
[1746577951743,17.83937163,148.74,148.72,23.53415814]
[1746577951947,17.83937163,148.73,148.72,6.72404518]
[1746577952373,17.83937163,148.73,148.71,27.46440514]
[1746577952669,17.83937163,148.72,148.71,27.46440514]
[1746577953970,17.83937163,148.72,148.71,20.74]
[1746577954554,17.83937163,148.75,148.71,20.74]
[1746577954873,17.83937163,148.72,148.71,20.74]
[1746577955367,17.83937163,148.74,148.71,27.46449734]
[1746577955773,17.83937163,148.73,148.71,27.46449734]
[1746577956150,26.0,148.76,148.71,27.46449734]
[1746577956351,18.64964886,148.79,148.71,62.11511232]
[1746577956545,17.83937163,148.76,148.72,17.83937163]
[1746577956764,17.83937163,148.77,148.72,17.83937163]
[1746577956979,17.83937163,148.77,148.72,38.51937163]
[1746577957350,17.83937163,148.79,148.74,17.83937163]
[1746577957550,17.83937163,148.79,148.75,6.72268907]
[1746577957750,17.83937163,148.78,148.75,6.72268907]
[1746577957982,26.0,148.82,148.75,41.36878338]
[1746577958187,46.21564886,148.84,148.76,17.83937163]
[1746577958387,27.566,148.84,148.76,17.83937163]
[1746577958805,17.83937163,148.81,148.76,17.83937163]
[1746577958975,27.566,148.84,148.76,17.83937163]
[1746577959158,17.83937163,148.8,148.76,17.83937163]
[1746577959692,27.566,148.84,148.77,6.7217853]
[1746577959887,17.83937163,148.8,148.77,6.7217853]
[1746577960189,17.83937163,148.78,148.77,6.7217853]
[1746577960381,17.83937163,148.78,148.73,6.72359308]
[1746577960682,17.83937163,148.75,148.73,6.72359308]
[1746577960877,26.0,148.81,148.73,6.72359308]
[1746577960878,17.83937163,148.76,148.73,6.72359308]
[1746577961177,26.0,148.79,148.73,41.37194743]
[1746577961380,17.83937163,148.78,148.73,41.37194743]
[1746577962077,26.0,148.81,148.73,41.37194743]